Cogmind - Beta 11 X3 *** ADVENTURER MODE // 2021.04.04 @ 08:27:24 Player: Luigi Panache Result: Destroyed by H-88 Terminator with Heavy Machine Gun Performance ------------- Evolutions (8) 4000 Regions Visited (24) 4800 Robots Destroyed (356) 1780 Value Destroyed (16682) 16682 Prototype IDs (45) 900 Alien Tech Used (2) 400 Bonus (10803) 10803 TOTAL SCORE: 39365 Bonus ------- Triggered High Security 500 High Alert Combat Kills 5114 Follower Combat Kills 2036 Met Data Miner 300 Met Zhirov 300 Built Enhanced Grunts 300 Met R17 at Cetus 500 Met R17 at Research 2000 Scanned by Researcher 500 Friendly Fire -747 Cogmind --------- Core Integrity 0/1450 Matter 268/300 Energy 99/100 System Corruption 26% Temperature Cool (0) Movement Core (50) Location -2/Testing Parts ------- > --- POWER (2) -------- (None) > --- PROPULSION (8) --- Biometal Heavy Treads > --- UTILITY (9) ------ (None) > --- WEAPON (4) ------- (None) > --- INVENTORY (5) ---- Hypervelocity Railgun Compact Tesla Bomb Launcher Centrium Greatsword Peak State ------------ > --- POWER ------------ Cooled Fission Core Cooled Fission Core > --- PROPULSION ------- Armored Heavy Treads Centrium Heavy Treads Biometal Heavy Treads Advanced Heavy Siege Treads > --- UTILITY ---------- Advanced Heat Sink Huge Storage Unit Experimental Optical Array Quantum Capacitor Centrium Medium Armor Plating Centrium Medium Armor Plating Centrium Medium Armor Plating Force Field > --- WEAPON ----------- Gamma Rifle Railgun Railgun Improved KE Penetrator > --- INVENTORY -------- Particle Reactor Quantum Reactor Improved Medium Treads Heavy Treads Armored Heavy Treads Armored Heavy Treads Advanced Energy Well High-capacity Matter Pod Centrium Medium Armor Plating Centrium Medium Armor Plating Improved System Backup Module Transdimensional Reconstructor Gamma Rifle Advanced Plasma Cannon Nova Cannon Gauss Rifle Heavy Machine Gun KE Penetrator Guided EMP Blaster Heavy Rocket Launcher Heavy Missile Launcher [Rating: 192] Favorites ----------- Power Cooled Fission Core Engine Improved Deuterium Engine Power Core Cooled Fission Core Reactor Heavy Antimatter Reactor Propulsion Armored Treads Treads Armored Treads Leg Aluminum Leg Utility Huge Storage Unit Device Advanced Heat Sink Storage Huge Storage Unit Processor Machine Analyzer Protection Centrium Medium Armor Plating Weapon Improved KE Penetrator Energy Gun Heavy EM Shotgun Energy Cannon Improved EM Pulse Cannon Ballistic Gun Improved KE Penetrator Ballistic Cannon Compact Linear Accelerator Launcher Micro-nuke Launcher Build | -11 -10 -10 -10 -9 -8 -7 -7 -7 -7 -6 -6 -6 -6 -5 -5 -5 -5 -4 -4 -4 -4 -3 -2 -2 ------- Run | Scr Mat Min Exi Min Mat Fac Low Low Dat Pro Fac Ext Cet Fac Upp Upp Zhi Pro Fac Was Fac Res Res Tes Slots Evolved 16 | . . . . . 4 2 . . . . 2 . . 2 . . . . 2 . . 2 2 . Power 1 | . . . . . . . . . . . 1 . . . . . . . . . . . . . Propulsion 6 | . . . . . 2 1 . . . . . . . 1 . . . . . . . . 2 . Utility 7 | . . . . . 2 . . . . . 1 . . . . . . . 2 . . 2 . . Weapon 2 | . . . . . . 1 . . . . . . . 1 . . . . . . . . . . Parts Attached 228 | . 1 10 . . 15 32 1 . 1 6 21 29 11 11 6 . 5 . 4 3 10 13 34 15 Power 20 | . . . . . 1 3 . . . 1 1 4 2 2 . . 1 . . . . 2 3 . Engine 8 | . . . . . 1 3 . . . 1 1 2 . . . . . . . . . . . . Core 9 | . . . . . . . . . . . . 2 1 2 . . . . . . . 2 2 . Reactor 3 | . . . . . . . . . . . . . 1 . . . 1 . . . . . 1 . Propulsion 55 | . . 2 . . 5 7 . . . . 8 11 4 2 . . . . 1 . 1 2 9 3 Treads 55 | . . 2 . . 5 7 . . . . 8 11 4 2 . . . . 1 . 1 2 9 3 Leg . | . . . . . . . . . . . . . . . . . . . . . . . . . Wheel . | . . . . . . . . . . . . . . . . . . . . . . . . . Hover . | . . . . . . . . . . . . . . . . . . . . . . . . . Flight . | . . . . . . . . . . . . . . . . . . . . . . . . . Utility 65 | . 1 7 . . 5 6 1 . . 2 2 7 3 6 2 . 4 . 3 . 2 5 9 . Device 26 | . . 2 . . . 2 . . . 2 . 4 . 2 1 . 3 . . . 1 4 5 . Storage 5 | . . 3 . . . 1 . . . . . . . 1 . . . . . . . . . . Processor 6 | . . . . . 1 1 . . . . 2 . . 1 . . . . . . . 1 . . Hackware . | . . . . . . . . . . . . . . . . . . . . . . . . . Protection 28 | . 1 2 . . 4 2 1 . . . . 3 3 2 1 . 1 . 3 . 1 . 4 . Artifact . | . . . . . . . . . . . . . . . . . . . . . . . . . Weapon 88 | . . 1 . . 4 16 . . 1 3 10 7 2 1 4 . . . . 3 7 4 13 12 Energy Gun 13 | . . . . . 2 3 . . . 1 2 . . . . . . . . . . . 5 . Energy Cannon 10 | . . . . . . 1 . . . . . 4 . . . . . . . . . 2 3 . Ballistic Gun 50 | . . 1 . . 2 12 . . 1 2 5 3 2 1 3 . . . . . 6 2 3 7 Ballistic Cannon 1 | . . . . . . . . . . . . . . . . . . . . . . . . 1 Launcher 14 | . . . . . . . . . . . 3 . . . 1 . . . . 3 1 . 2 4 Special Weapon . | . . . . . . . . . . . . . . . . . . . . . . . . . Impact Weapon . | . . . . . . . . . . . . . . . . . . . . . . . . . Slashing Weapon . | . . . . . . . . . . . . . . . . . . . . . . . . . Piercing Weapon . | . . . . . . . . . . . . . . . . . . . . . . . . . Special Melee Weapon . | . . . . . . . . . . . . . . . . . . . . . . . . . Unidentified Prototypes 20 | . . 1 . . 1 3 . . . . 2 . 3 3 . . 3 . . . . . 1 3 Corrupted Parts 18 | . . . . . 4 3 . . . . . 4 4 1 1 . . . . . . . . 1 System Corruption 103 | . . . . . 10 20 . . . . . 23 21 12 7 . . . . . . . . 10 Parts Lost 70 | . . 1 . . 2 2 1 1 . 2 . 16 . . . . . 2 . . 6 1 18 18 Power 8 | . . . . . . . . . . 1 . 3 . . . . . . . . 2 . 1 1 Propulsion 17 | . . . . . . 1 . . . . . 7 . . . . . 1 . . . . 2 6 Utility 18 | . . . . . 1 . 1 . . . . 3 . . . . . 1 . . 2 . 7 3 Weapon 27 | . . 1 . . 1 1 . 1 . 1 . 3 . . . . . . . . 2 1 8 8 Highest Loss Streak 13 | . . 1 . . 2 2 1 1 . 2 . 13 . . . . . 1 . . 3 1 4 9 Average Slot Usage (%) 90 | . 99 96 100 100 90 99 96 99 76 99 99 95 88 82 88 88 87 80 77 84 78 77 72 39 Engine 4 | . 14 14 14 14 9 7 7 7 7 6 13 9 . . . . . . . . . . . . Core 3 | . . . . . . . . . . . . 2 11 7 11 11 9 5 5 5 4 7 7 2 Treads 28 | . . 27 28 28 31 37 38 38 38 38 33 30 22 23 23 23 23 20 15 15 15 14 16 11 Device 7 | . . 1 . . . 6 7 7 7 7 6 4 6 5 9 5 8 6 5 5 7 12 14 4 Storage 6 | . 14 12 14 14 9 7 7 7 7 7 6 6 6 5 5 5 5 5 5 5 5 4 4 3 Processor 6 | . . . . . 5 7 7 7 7 7 13 10 6 5 5 5 5 5 5 5 5 4 4 3 Protection 8 | . 13 12 14 14 17 7 4 7 7 7 6 8 12 10 6 11 6 5 14 21 16 14 9 1 Energy Gun 2 | . 28 19 14 14 10 4 . . . . 3 . . . . . . . . . . . 1 . Energy Cannon 1 | . . . . . . . . . . . . 9 6 5 . . . . . . . 2 2 1 Ballistic Gun 16 | . . 6 14 14 7 17 23 22 . 22 15 10 13 11 22 23 23 23 21 6 19 16 8 5 Naked Turns 63 | . . . . . . . . . . . . . . . . . . . . . . . . 63 Heaviest Build 173 | 14 19 54 54 54 68 113 113 110 106 110 121 140 146 147 149 149 153 148 169 173 168 167 167 148 Greatest Support 295 | 20 20 40 40 40 80 100 100 100 100 100 130 140 190 220 213 213 213 213 230 230 230 230 295 275 Greatest Overweight (x) 47 | . . 1 1 1 1 1 1 1 1 1 1 2 1 . 47 . . . . . . . . . Average Overweight (x) 1 | . . . 1 1 . . 1 1 . . . . . . 11 . . . . . . . . . Largest Inventory Capacity 25 | . 8 20 20 20 20 25 25 25 25 25 25 25 25 25 25 25 25 25 25 25 25 25 25 25 Average Capacity 23 | . 8 8 20 20 20 24 25 25 25 25 25 25 25 25 25 25 25 25 25 25 25 25 25 20 Most Carried 25 | . 8 9 12 12 20 25 24 24 25 24 25 25 25 25 24 24 25 25 25 23 23 25 25 19 Average Carried 22 | . 7 6 11 12 15 24 24 24 24 21 24 20 20 24 24 24 24 25 23 22 20 22 22 13 Final Capacity 25 | 8 8 20 20 20 20 25 25 25 25 25 25 25 25 25 25 25 25 25 25 25 25 25 25 5 Final Carried 25 | 6 7 9 12 12 20 24 24 24 25 22 25 17 25 24 24 24 25 25 23 23 21 25 17 4 Class Distribution -------------------- 49% | Scavenger-Tank 27% | Tank 11% | Scavenger-Mutant 10% | Mutant Dominant Class ---------------- Mutant | -10/Materials Mutant | -10/Mines Mutant | -10/Exiles Mutant | -9/Mines Mutant | -8/Materials Tank | -7/Factory Scavenger-Tank | -7/Lower Caves Scavenger-Tank | -7/Lower Caves Mutant | -7/Data Miner Tank | -6/Proximity Caves Tank | -6/Factory Tank | -6/Extension Scavenger-Tank | -6/Cetus Scavenger-Tank | -5/Factory Scavenger-Tank | -5/Upper Caves Scavenger-Tank | -5/Upper Caves Scavenger-Tank | -5/Zhirov Scavenger-Tank | -4/Proximity Caves Scavenger-Tank | -4/Factory Scavenger-Tank | -4/Waste Scavenger-Tank | -4/Factory Scavenger-Mutant | -3/Research Scavenger-Mutant | -2/Research Mutant | -2/Testing Resources | -11 -10 -10 -10 -9 -8 -7 -7 -7 -7 -6 -6 -6 -6 -5 -5 -5 -5 -4 -4 -4 -4 -3 -2 -2 ----------- Run | Scr Mat Min Exi Min Mat Fac Low Low Dat Pro Fac Ext Cet Fac Upp Upp Zhi Pro Fac Was Fac Res Res Tes Matter Collected 10070 | 200 10 95 200 . 326 1790 173 235 . 362 212 828 213 148 289 112 . 226 158 948 1340 682 877 646 Remotely . | . . . . . . . . . . . . . . . . . . . . . . . . . Salvage Created 19101 | . 239 . . . 961 2927 218 371 . 568 393 1120 240 152 141 201 . 569 221 1101 1604 844 5635 1596 Parts 795 | . 15 . . . 64 159 8 18 . 29 20 46 8 6 10 7 . 25 17 1 72 30 211 49 Haulers Intercepted 11 | . 1 . . . 2 4 . . . . . . . 1 . . . . . . . 1 1 1 Recyclers Shooed 8 | . . 1 . . . 1 . . . . . . . . . . . . . . 1 2 1 2 Parts Field Recycled . | . . . . . . . . . . . . . . . . . . . . . . . . . Retrieved Matter . | . . . . . . . . . . . . . . . . . . . . . . . . . Parts Self-Destructed 126 | . . . . . . . 8 18 . 27 . . . . 19 16 . 38 . . . . . . Prevented 4 | . . . . . . . . . . . . . . . 1 3 . . . . . . . . Kills | -11 -10 -10 -10 -9 -8 -7 -7 -7 -7 -6 -6 -6 -6 -5 -5 -5 -5 -4 -4 -4 -4 -3 -2 -2 ------- Run | Scr Mat Min Exi Min Mat Fac Low Low Dat Pro Fac Ext Cet Fac Upp Upp Zhi Pro Fac Was Fac Res Res Tes Combat Hostiles Destroyed 260 | . 4 . . . 17 42 4 8 . 11 5 20 3 1 4 4 . 13 6 5 17 8 73 15 Guns 161 | . 4 . . . 17 41 4 8 . 11 5 8 . 1 4 4 . 13 6 . 10 6 12 7 Cannons 27 | . . . . . . . . . . . . 7 . . . . . . . . . . 19 1 AOE 36 | . . . . . . . . . . . . 1 . . . . . . . 5 7 . 16 7 Classes Destroyed 22 | . 3 . . . 6 4 . 1 . 1 . . . . . . . 1 . 1 3 . 1 1 Worker 23 | . . . . . 2 6 . . . . 1 1 . 1 . . . . . . 4 3 3 2 Builder 17 | . . . . . 1 3 . . . . . 1 . 1 . . . . . . 6 . 2 3 Tunneler 3 | . . . . . . . . . . . . . . . . . . . . . 2 . 1 . Hauler 11 | . 1 . . . 2 4 . . . . . . . 1 . . . . . . . 1 1 1 Recycler 10 | . . . . . . 3 . . . . 1 . . . . . . . . . 2 1 . 3 Carrier 1 | . . . . . . . . . . . . . . . . . . 1 . . . . . . Mechanic 1 | . . . . . . . . . . . . . . . . . . . . . 1 . . . Operator 7 | . . . . . 1 3 . . . . . 1 . . . . . . 1 . 1 . . . Watcher 21 | . 1 . . . 3 5 . . . . 1 2 . . . . . . 1 . 3 . 5 . Swarmer 47 | . . . . . 7 3 . 2 . 3 2 3 . . 3 1 . 10 5 . . . 8 . Saboteur 1 | . . . . . . . . . . . . . . . . . . . . . . . 1 . Grunt 105 | . 4 . . . 6 24 3 4 . 2 2 10 . 1 . 3 . 1 . . 6 3 25 11 Brawler 5 | . . . . . . 1 . . . . . . . . . . . . . . 2 . 2 . Duelist 10 | . . . . . . 1 . . . 1 . . . . . . . . . . 1 . 5 2 Protector 3 | . . . . . . . . . . . . . . . . . . . . . 1 . 1 1 Researcher 2 | . . . . . . . . . . . . . . . . . . . . . . . . 2 Sentry 21 | . . . . . 3 5 . 1 . . . 5 . . . . . . . . 2 . 5 . Hunter 27 | . . . . . 1 . . . . . . . . . . . . 2 1 . 4 5 13 1 Programmer 24 | . . . . . . 8 1 . . . 1 . . . 1 . . . . . . . 13 . Behemoth 4 | . . . . . . . . 1 . . . 2 . . . . . . . . 1 . . . Compactor 5 | . . . . . . . . . . . . . . . . . . . . 5 . . . . Cetus Guard 3 | . . . . . . . . . . . . . 3 . . . . . . . . . . . Decomposer 1 | . . . . . . . 1 . . . . . . . . . . . . . . . . . Thug 4 | . . . . . . . . . . 4 . . . . . . . . . . . . . . Mutant 1 | . . . . . . . . . . 1 . . . . . . . . . . . . . . Best Kill Streak 18 | . 2 . . . 6 5 3 5 . 5 4 4 2 2 3 3 . 6 7 5 14 7 10 18 Combat Bots Only 10 | . 2 . . . 4 4 3 5 . 5 4 4 2 1 3 3 . 5 5 5 7 3 10 10 Max Kills in Single Turn 5 | . 1 . . . 2 3 2 2 . 2 2 2 1 1 2 2 . 4 3 1 5 2 2 3 Gunslinging 2 | . . . . . . 1 1 1 . 1 1 . . . . . . 2 1 . . . . 1 Exploded 2 | . . . . . . . . . . . . 1 . . . . . . . 1 2 . 2 2 Melee . | . . . . . . . . . . . . . . . . . . . . . . . . . Uniques/NPCs Destroyed . | . . . . . . . . . . . . . . . . . . . . . . . . . Combat | -11 -10 -10 -10 -9 -8 -7 -7 -7 -7 -6 -6 -6 -6 -5 -5 -5 -5 -4 -4 -4 -4 -3 -2 -2 -------- Run | Scr Mat Min Exi Min Mat Fac Low Low Dat Pro Fac Ext Cet Fac Upp Upp Zhi Pro Fac Was Fac Res Res Tes Damage Taken 23950 | . 129 185 . . 669 1673 36 276 . 715 207 2778 288 101 473 163 . 407 325 94 2576 224 6557 6074 Core 2439 | . 23 8 . . 78 140 . 8 . 11 . 484 19 . 12 25 . 12 49 . 150 6 324 1090 Absorbed by Shields 1164 | . . . . . . 151 13 103 . 125 77 51 55 . . . . . . . . 235 354 . Reduced by Siege Mode 394 | . . . . . . . . . . . . . . . . . . . . . 60 . 54 280 Core Remaining (%) 83 | 100 . . . 87 85 . . . . 77 . . 40 . . . . 95 . . 82 99 . . Volleys Fired 801 | . 16 2 . . 60 84 4 11 . 15 12 53 14 4 5 7 . 11 13 8 48 34 345 55 Largest 4 | . 2 2 . . 2 3 3 3 . 3 3 3 3 3 4 4 . 4 4 4 4 4 4 4 Hottest 207 | . 80 80 . . 100 150 84 84 . 84 106 207 132 132 167 140 . 140 140 163 144 140 140 147 Shots Fired 1650 | . 32 3 . . 116 247 15 33 . 45 36 151 37 12 21 28 . 44 52 25 183 94 385 91 Gun 1273 | . 32 3 . . 116 247 15 33 . 45 36 63 25 8 20 28 . 44 52 1 170 80 182 73 Cannon 319 | . . . . . . . . . . . . 88 12 4 1 . . . . . . 14 188 12 Launcher 58 | . . . . . . . . . . . . . . . . . . . . 24 13 . 15 6 Special . | . . . . . . . . . . . . . . . . . . . . . . . . . Kinetic 1018 | . . . . . 59 203 15 33 . 45 35 63 25 8 20 28 . 44 52 1 170 80 64 73 Thermal 180 | . . . . . . . . . . . . . . . . . . . . . . 4 164 12 Explosive 58 | . . . . . . . . . . . . . . . . . . . . 24 13 . 15 6 Electromagnetic 394 | . 32 3 . . 57 44 . . . . 1 88 12 4 1 . . . . . . 10 142 . Robot Hit Streak 48 | . 7 7 . . 30 25 8 32 . 39 22 18 22 31 16 27 . 9 22 15 22 42 48 37 Robot Miss Streak 6 | . 2 1 . . 4 3 2 5 . 6 2 2 1 1 . 2 . 2 1 2 2 4 2 2 Penetration Max 2 | . . . . . . 1 . . . 1 . 1 . . 1 1 . 1 1 . 2 1 . 1 Secondary Targets 37 | . . . . . 1 12 1 2 . 3 1 1 . . . 1 . 7 1 . 1 2 1 3 Max Gunslinging Chain 2 | . . . . . 1 1 1 1 . 1 1 1 . . . 1 . 2 1 . 1 1 1 1 Capacitor 313 | . . . . . . . . . . . . . . . . . . . . . . 10 303 . Shots Hit Robots 1359 | . 23 2 . . 91 202 12 30 . 44 25 121 35 9 16 24 . 29 40 21 127 80 346 82 Core Hits 914 | . 9 2 . . 45 225 25 41 . 53 25 51 9 5 5 9 . 19 15 12 113 32 156 63 Critical Hits 79 | . . . . . 1 . . . . . . 4 2 . 3 5 . 7 9 . 18 8 16 6 Critical Kills 28 | . . . . . . . . . . . . 1 . . . 2 . 4 3 . 7 4 5 2 Critical Parts Destroyed 45 | . . . . . . . . . . . . 3 2 . 2 2 . 3 4 . 10 4 11 4 Melee Attacks . | . . . . . . . . . . . . . . . . . . . . . . . . . Impact . | . . . . . . . . . . . . . . . . . . . . . . . . . Slashing . | . . . . . . . . . . . . . . . . . . . . . . . . . Piercing . | . . . . . . . . . . . . . . . . . . . . . . . . . Sneak Attacks . | . . . . . . . . . . . . . . . . . . . . . . . . . Combat Hostiles . | . . . . . . . . . . . . . . . . . . . . . . . . . Follow-up Attacks . | . . . . . . . . . . . . . . . . . . . . . . . . . Damage Inflicted 46192 | . 332 25 . . 1406 5370 322 770 . 1002 673 3285 834 297 436 730 . 698 1065 2491 5808 2285 14317 4046 Guns 25747 | . 332 23 . . 1334 4910 322 770 . 1002 660 1273 540 144 412 730 . 698 1065 29 3541 1821 4387 1754 Cannons 8913 | . . . . . . . . . . . . 1799 294 94 24 . . . . . . 408 5960 334 Explosions 10995 | . . . . . 52 411 . . . . . 213 . . . . . . . 2462 2237 . 3679 1941 Melee . | . . . . . . . . . . . . . . . . . . . . . . . . . Ramming 537 | . . 2 . . 20 49 . . . . 13 . . 59 . . . . . . 30 56 291 17 Kinetic 20860 | . . . . . 614 4092 322 770 . 1002 638 1273 540 144 412 730 . 698 1065 29 3541 1821 1415 1754 Thermal 7164 | . . . . . 52 411 . . . . . 213 . . . . . . . . 45 101 6008 334 Explosive 9283 | . . . . . . . . . . . . . . . . . . . . 2462 1885 . 2995 1941 Electromagnetic 8348 | . 332 23 . . 720 818 . . . . 22 1799 294 94 24 . . . . . 307 307 3608 . Impact . | . . . . . . . . . . . . . . . . . . . . . . . . . Slashing . | . . . . . . . . . . . . . . . . . . . . . . . . . Piercing . | . . . . . . . . . . . . . . . . . . . . . . . . . Highest Corruption 50 | . . . . . 10 21 21 21 21 21 6 29 50 13 20 1 1 . . 10 11 . 16 26 Average Corruption 14 | . . . . . 4 18 21 21 21 21 4 13 38 1 10 1 1 . . 6 10 . 8 21 Corruption Purged 23 | . . . . . . . . . . . . . . . 20 . 1 . . . . . 2 . Effects 797 | . . . . . 11 266 54 40 10 58 4 86 31 1 101 2 1 . . 3 17 . 64 48 Message Errors 179 | . . . . . 2 58 11 11 2 11 . 18 8 . 31 . 1 . . . 5 . 15 6 Matter Fused 157 | . . . . . 3 57 12 9 1 11 1 21 3 . 18 . . . . 1 2 . 12 6 Heat Flow Errors 71 | . . . . . 2 25 7 5 1 5 3 4 1 1 9 . . . . . 1 . 5 2 Energy Discharges 93 | . . . . . . 28 5 4 2 5 . 7 5 . 19 1 . . . . 1 . 8 8 Parts Rejected 7 | . . . . . . . . . . . . 2 . . . . . . . . 1 . 1 3 Data Loss (minor) 92 | . . . . . 2 31 5 3 1 8 . 9 1 . 14 1 . . . 1 4 . 8 4 Data Loss (major) 31 | . . . . . . 9 . 3 . 6 . 3 1 . 1 . . . . . 2 . 4 2 Misfires 26 | . . . . . . 8 4 . . 2 . 5 1 . 2 . . . . . . . 3 1 Alerts 13 | . . . . . . 6 1 1 . . . 2 . . 2 . . . . . . . 1 . Misdirections 95 | . . . . . . 34 8 4 3 8 . 11 8 . 4 . . . . 1 1 . 2 11 Weapon Failures 33 | . . . . . 2 10 1 . . 2 . 4 3 . 1 . . . . . . . 5 5 Overload Shots . | . . . . . . . . . . . . . . . . . . . . . . . . . Overflow Damage 723 | . . . . . . 51 . . . . . 55 . . . . . . . . 17 27 455 118 Projectiles 260 | . . . . . . . . . . . . 55 . . . . . . . . . 11 188 6 Explosions 424 | . . . . . . 51 . . . . . . . . . . . . . . 17 . 245 111 Melee 39 | . . . . . . . . . . . . . . . . . . . . . . 16 22 1 Knockbacks 6 | . . . . . . 1 . . . . . . . 1 . . . . . . . 1 3 . Impact 5 | . . . . . . 1 . . . . . . . 1 . . . . . . . 1 2 . Kinetic . | . . . . . . . . . . . . . . . . . . . . . . . . . Secondary 1 | . . . . . . . . . . . . . . . . . . . . . . . 1 . Self-Inflicted Damage 1237 | . . . . . 28 144 . . . . . . . . . . . . . 99 246 . 348 372 Shots 30 | . . . . . 1 3 . . . . . . . . . . . . . 5 8 . 7 6 Rammed 26 | . . 1 . . 2 7 . . . . 1 . . 1 . . . . . . 1 1 10 2 Targets Rammed 31 | . . 1 . . 3 8 . . . . 1 . . 3 . . . . . . 1 1 11 2 Kicked . | . . . . . . . . . . . . . . . . . . . . . . . . . Crushed 5 | . . . . . 1 1 . . . . . . . 2 . . . . . . . . 1 . Highest Temperature 728 | . 215 33 . . 344 358 229 269 191 266 237 607 367 184 250 39 . 194 301 144 382 180 728 191 Average Temperature 99 | . 86 21 . . 107 67 74 69 97 72 88 124 95 61 85 15 . 69 131 66 155 49 128 70 Received Heat Transfer 4369 | . 93 20 . . 306 583 12 54 . 290 54 709 22 15 6 9 . . . . 318 43 584 1251 Effects 30 | . . . . . . . . 1 . . . 13 . . 1 . . . . . 6 . 9 . Shutdowns 9 | . . . . . . . . . . . . 4 . . . . . . . . 2 . 3 . Energy Bleed 5 | . . . . . . . . 1 . . . 1 . . 1 . . . . . . . 2 . Interference 10 | . . . . . . . . . . . . 3 . . . . . . . . 4 . 3 . Matter Decay 2 | . . . . . . . . . . . . 1 . . . . . . . . . . 1 . Short Circuit 1 | . . . . . . . . . . . . 1 . . . . . . . . . . . . Damage (major) 2 | . . . . . . . . . . . . 2 . . . . . . . . . . . . Damage (core) 1 | . . . . . . . . . . . . 1 . . . . . . . . . . . . Siege Activations 3 | . . . . . . . . . . . . . . . . . . . . . 1 . 1 1 Total Turns 81 | . . . . . . . . . . . . . . . . . . . . . 36 . 14 31 Longest Duration 36 | . . . . . . . . . . . . . . . . . . . . . 36 . 14 31 Robots Corrupted 34 | . 1 . . . . 1 . . . . . 4 3 . . . . . . . . 2 23 . Combat Hostiles 30 | . . . . . . 1 . . . . . 4 3 . . . . . . . . 2 20 . Parts Fried 62 | . 1 . . . 5 7 . . . . . 8 2 . . . . . . . 2 2 35 . Impact Corruptions 4 | . . . . . . . . . . . . . . . . . . . . . . 1 2 1 Robots Melted 6 | . . . . . . . . . . . . . . . . . . . . . . . 6 . Combat Hostiles 6 | . . . . . . . . . . . . . . . . . . . . . . . 6 . Parts Melted 30 | . . . . . . 1 . . . . . . . . . . . . . . . . 27 2 Heat Transferred 8981 | . . . . . 100 300 . . . . . 250 . . . . . . . . 50 150 7631 500 Parts Sabotaged . | . . . . . . . . . . . . . . . . . . . . . . . . . Parts Stolen . | . . . . . . . . . . . . . . . . . . . . . . . . . Parts Stripped . | . . . . . . . . . . . . . . . . . . . . . . . . . Power Chain Reactions 13 | . . . . . 4 2 . . . . . 2 . . . . . . . . 1 . 4 . Missiles Intercepted . | . . . . . . . . . . . . . . . . . . . . . . . . . Alert | -11 -10 -10 -10 -9 -8 -7 -7 -7 -7 -6 -6 -6 -6 -5 -5 -5 -5 -4 -4 -4 -4 -3 -2 -2 ------- Run | Scr Mat Min Exi Min Mat Fac Low Low Dat Pro Fac Ext Cet Fac Upp Upp Zhi Pro Fac Was Fac Res Res Tes Peak Influence 2178 | . 106 49 . . 350 492 . . . . 164 240 309 250 . . . . 394 281 1385 844 2178 1407 Initial 1100 | . . 34 . . . 136 . . . . . 21 60 150 . . . . 133 115 172 585 413 1100 Average 341 | . 32 15 . . 169 136 . . . . 71 70 167 163 . . . . 327 235 832 643 1059 1220 Maximum Alert Level 5 | . . . . . 1 2 . . . . . 1 1 1 . . . . 1 1 4 3 5 4 Low Security (%) 58 | . 100 100 . 100 64 73 . . . . 100 94 71 67 . . . . 9 28 . . . . Level 1 14 | . . . . . 35 22 . . . . . 5 28 32 . . . . 90 71 16 . . . Level 2 9 | . . . . . . 4 . . . . . . . . . . . . . . 26 71 27 . Level 3 6 | . . . . . . . . . . . . . . . . . . . . . 27 28 32 . Level 4 8 | . . . . . . . . . . . . . . . . . . . . . 29 . 22 100 Level 5 1 | . . . . . . . . . . . . . . . . . . . . . . . 12 . High Security . | . . . . . . . . . . . . . . . . . . . . . . . 4 . Max Security . | . . . . . . . . . . . . . . . . . . . . . . . . . Squads Dispatched 80 | . 2 . . . 3 16 . . . . 5 6 . 2 . . . . 1 . 9 8 18 10 Investigation 20 | . 2 . . . 1 4 . . . . 2 2 . 1 . . . . . . 2 3 2 1 Extermination 12 | . . . . . . 6 . . . . 1 . . . . . . . . . . . 4 1 Reinforcement 28 | . . . . . 2 3 . . . . 1 4 . 1 . . . . 1 . 2 5 3 6 Assault 13 | . . . . . . 1 . . . . . . . . . . . . . . 2 . 8 2 Garrison 7 | . . . . . . 2 . . . . 1 . . . . . . . . . 3 . 1 . Intercept . | . . . . . . . . . . . . . . . . . . . . . . . . . Construction Impeded 5 | . . . . . . . . . . . . . . . . . . . . . 1 1 1 2 Haulers Reinforced 2 | . . . . . . . . . . . . . . 1 . . . . . . . 1 . . Stealth | -11 -10 -10 -10 -9 -8 -7 -7 -7 -7 -6 -6 -6 -6 -5 -5 -5 -5 -4 -4 -4 -4 -3 -2 -2 --------- Run | Scr Mat Min Exi Min Mat Fac Low Low Dat Pro Fac Ext Cet Fac Upp Upp Zhi Pro Fac Was Fac Res Res Tes Distress Signals 22 | . . . . . 1 1 . . . . . 2 2 . . . . . 1 . 1 8 5 1 Communications Jammed . | . . . . . . . . . . . . . . . . . . . . . . . . . Distress Signals . | . . . . . . . . . . . . . . . . . . . . . . . . . Times Spotted 466 | . 5 4 . . 24 58 4 8 . 17 8 45 10 3 11 9 . 16 10 6 41 19 118 50 Peak Tracking Total 16 | . 2 4 . . 6 4 2 4 . 9 2 5 5 1 9 4 . 5 7 3 9 6 13 16 Tactical Retreats 16 | . . . . . . 1 . . . . . 2 . . . . . . . . 1 . 9 3 Traps | -11 -10 -10 -10 -9 -8 -7 -7 -7 -7 -6 -6 -6 -6 -5 -5 -5 -5 -4 -4 -4 -4 -3 -2 -2 ------- Run | Scr Mat Min Exi Min Mat Fac Low Low Dat Pro Fac Ext Cet Fac Upp Upp Zhi Pro Fac Was Fac Res Res Tes Traps Triggered 18 | . 2 . . . 1 4 . 1 . . 1 3 . . . . . . 1 . 1 . 4 . Indirectly . | . . . . . . . . . . . . . . . . . . . . . . . . . Trap Hack Attempts . | . . . . . . . . . . . . . . . . . . . . . . . . . Triggered . | . . . . . . . . . . . . . . . . . . . . . . . . . Disarmed . | . . . . . . . . . . . . . . . . . . . . . . . . . Reprogrammed . | . . . . . . . . . . . . . . . . . . . . . . . . . Reused . | . . . . . . . . . . . . . . . . . . . . . . . . . Traps Extracted . | . . . . . . . . . . . . . . . . . . . . . . . . . Installed . | . . . . . . . . . . . . . . . . . . . . . . . . . Triggered 3 | . . . . . . . . 1 . 1 . . . . . 1 . . . . . . . . Exploded 2 | . . . . . . 2 . . . . . . . . . . . . . . . . . . Machines | -11 -10 -10 -10 -9 -8 -7 -7 -7 -7 -6 -6 -6 -6 -5 -5 -5 -5 -4 -4 -4 -4 -3 -2 -2 ---------- Run | Scr Mat Min Exi Min Mat Fac Low Low Dat Pro Fac Ext Cet Fac Upp Upp Zhi Pro Fac Was Fac Res Res Tes Machines Disabled 41 | . . . . . 1 10 . . . . . 3 . . . . . . 1 . 22 . 3 1 Max in Single Turn 7 | . . . . . 1 5 . . . . . 1 . . . . . . 1 . 7 . 1 1 Garrison Access 7 | . . . . . . 2 . . . . 1 . . . . . . . . . 1 1 2 . Machines Sabotaged . | . . . . . . . . . . . . . . . . . . . . . . . . . Garrisons Compromised . | . . . . . . . . . . . . . . . . . . . . . . . . . Overloaded Fab Kills . | . . . . . . . . . . . . . . . . . . . . . . . . . Fab Network Shutdowns 1 | . . . . . . 1 . . . . . . . . . . . . . . . . . . Hacking | -11 -10 -10 -10 -9 -8 -7 -7 -7 -7 -6 -6 -6 -6 -5 -5 -5 -5 -4 -4 -4 -4 -3 -2 -2 --------- Run | Scr Mat Min Exi Min Mat Fac Low Low Dat Pro Fac Ext Cet Fac Upp Upp Zhi Pro Fac Was Fac Res Res Tes Machines Accessed 54 | . 4 1 1 . 2 12 . . 3 . 4 3 1 5 . . 4 1 . . 2 3 7 1 Terminals 25 | . 4 . . . 1 5 . . . . 1 3 1 5 . . . 1 . . . 1 2 1 Fabricators 7 | . . . . . . 4 . . . . 1 . . . . . . . . . 1 1 . . Repair Stations 7 | . . . . . 1 2 . . . . 1 . . . . . . . . . . . 3 . Recycling Units . | . . . . . . . . . . . . . . . . . . . . . . . . . Scanalyzers . | . . . . . . . . . . . . . . . . . . . . . . . . . Garrison Access 6 | . . . . . . 1 . . . . 1 . . . . . . . . . 1 1 2 . Total Hacks 157 | . 19 1 1 . 5 30 . . 22 . 11 8 3 13 . . 17 1 . . 5 5 14 2 Successful 88 | . 10 1 1 . 3 11 . . 22 . 4 2 . 7 . . 17 1 . . 2 1 5 1 Failed 69 | . 9 . . . 2 19 . . . . 7 6 3 6 . . . . . . 3 4 9 1 Catastrophic 15 | . . . . . . 4 . . . . 2 1 1 . . . . . . . 2 1 3 1 Database Lockouts . | . . . . . . . . . . . . . . . . . . . . . . . . . Manual 39 | . 11 . . . 1 10 . . . . 1 . 1 6 . . . . . . 1 3 5 . Terminals 68 | . 19 . . . 3 12 . . . . 1 8 3 13 . . . 1 . . . 1 5 2 Fabricators 20 | . . . . . . 11 . . . . 4 . . . . . . . . . 3 2 . . Repair Stations 16 | . . . . . 2 4 . . . . 4 . . . . . . . . . . . 6 . Recycling Units . | . . . . . . . . . . . . . . . . . . . . . . . . . Scanalyzers . | . . . . . . . . . . . . . . . . . . . . . . . . . Garrison Access 12 | . . . . . . 3 . . . . 2 . . . . . . . . . 2 2 3 . Terminal Hacks 63 | . 10 1 1 . 1 2 . . 22 . . 2 . 5 . . 17 1 . . . . . 1 Record 13 | . . . 1 . . . . . 6 . . . . . . . 5 1 . . . . . . Part Schematic 14 | . 1 . . . . . . . 9 . . . . . . . 4 . . . . . . . Robot Schematic 4 | . . . . . . . . . 4 . . . . . . . . . . . . . . . Robot Analysis 6 | . 1 . . . . . . . . . . 1 . . . . 4 . . . . . . . Prototype ID Bank 12 | . 4 . . . . . . . 3 . . . . 1 . . 4 . . . . . . . Open Door 1 | . . 1 . . . . . . . . . . . . . . . . . . . . . . Level Access Points 1 | . . . . . . . . . . . . . . . . . . . . . . . . 1 Branch Access Points 4 | . 1 . . . 1 1 . . . . . . . 1 . . . . . . . . . . Terminal Index 1 | . . . . . . . . . . . . 1 . . . . . . . . . . . . Alert Level 3 | . 2 . . . . . . . . . . . . 1 . . . . . . . . . . Unreport Threat 1 | . 1 . . . . . . . . . . . . . . . . . . . . . . . Recall Reinforcements 2 | . . . . . . 1 . . . . . . . 1 . . . . . . . . . . Zone Layout 1 | . . . . . . . . . . . . . . 1 . . . . . . . . . . Fabricator Hacks 9 | . . . . . . 6 . . . . 2 . . . . . . . . . 1 . . . Network Status 1 | . . . . . . . . . . . 1 . . . . . . . . . . . . . Load Schematic 5 | . . . . . . 3 . . . . 1 . . . . . . . . . 1 . . . Build 3 | . . . . . . 3 . . . . . . . . . . . . . . . . . . Repair Station Hacks 9 | . . . . . 2 2 . . . . 1 . . . . . . . . . . . 4 . Scan Component 6 | . . . . . 1 2 . . . . 1 . . . . . . . . . . . 2 . Repair 3 | . . . . . 1 . . . . . . . . . . . . . . . . . 2 . Recycling Unit Hacks . | . . . . . . . . . . . . . . . . . . . . . . . . . Scanalyzer . | . . . . . . . . . . . . . . . . . . . . . . . . . Garrison Access Hacks 2 | . . . . . . . . . . . 1 . . . . . . . . . . . 1 . Seal Access 2 | . . . . . . . . . . . 1 . . . . . . . . . . . 1 . Unauthorized Hacks 5 | . . . . . . 1 . . . . . . . 2 . . . . . . 1 1 . . Terminals 2 | . . . . . . . . . . . . . . 2 . . . . . . . . . . Botnet 2 | . . . . . . . . . . . . . . 2 . . . . . . . . . . Fabricators . | . . . . . . . . . . . . . . . . . . . . . . . . . Repair Stations . | . . . . . . . . . . . . . . . . . . . . . . . . . Recycling Units . | . . . . . . . . . . . . . . . . . . . . . . . . . Scanalyzers . | . . . . . . . . . . . . . . . . . . . . . . . . . Garrison Access 3 | . . . . . . 1 . . . . . . . . . . . . . . 1 1 . . Jam 3 | . . . . . . 1 . . . . . . . . . . . . . . 1 1 . . Data Cores Recovered 2 | . . . . . . 1 . . . . . . . 1 . . . . . . . . . . Used . | . . . . . . . . . . . . . . . . . . . . . . . . . Hacking Detections 39 | . 3 . . . 2 11 . . . . 3 3 1 5 . . . . . . 2 3 5 1 Full Trace Events 11 | . . . . . . 2 . . . . 2 2 . 1 . . . . . . 1 . 2 1 Feedback Events 1 | . . . . . . . . . . . . . . 1 . . . . . . . . . . Corruption 1 | . . . . . . . . . . . . . . 1 . . . . . . . . . . Feedback Blocked . | . . . . . . . . . . . . . . . . . . . . . . . . . Robot Schematics Acquired 4 | . . . . . . . . . 4 . . . . . . . . . . . . . . . Robots Built 1 | . . . . . . 1 . . . . . . . . . . . . . . . . . . Matter 219 | . . . . . . 219 . . . . . . . . . . . . . . . . . . Time 58 | . . . . . . 58 . . . . . . . . . . . . . . . . . . Total Robot Build Rating 3 | . . . . . . 3 . . . . . . . . . . . . . . . . . . Part Schematics Acquired 14 | . 1 . . . . . . . 9 . . . . . . . 4 . . . . . . . Parts Built 1 | . . . . . . 1 . . . . . . . . . . . . . . . . . . Matter 102 | . . . . . . 102 . . . . . . . . . . . . . . . . . . Time 25 | . . . . . . 25 . . . . . . . . . . . . . . . . . . Total Part Build Rating 1 | . . . . . . 1 . . . . . . . . . . . . . . . . . . Parts Repaired 3 | . . . . . 1 . . . . . . . . . . . . . . . . . 2 . Time 170 | . . . . . 26 . . . . . . . . . . . . . . . . . 144 . Parts Recycled . | . . . . . . . . . . . . . . . . . . . . . . . . . Recycled Matter . | . . . . . . . . . . . . . . . . . . . . . . . . . Retrieved Matter . | . . . . . . . . . . . . . . . . . . . . . . . . . Retrieved Components . | . . . . . . . . . . . . . . . . . . . . . . . . . Parts Scanalyzed . | . . . . . . . . . . . . . . . . . . . . . . . . . Part Schematics Acquired . | . . . . . . . . . . . . . . . . . . . . . . . . . Parts Damaged . | . . . . . . . . . . . . . . . . . . . . . . . . . Bothacking | -11 -10 -10 -10 -9 -8 -7 -7 -7 -7 -6 -6 -6 -6 -5 -5 -5 -5 -4 -4 -4 -4 -3 -2 -2 ------------ Run | Scr Mat Min Exi Min Mat Fac Low Low Dat Pro Fac Ext Cet Fac Upp Upp Zhi Pro Fac Was Fac Res Res Tes Used RIF Installer . | . . . . . . . . . . . . . . . . . . . . . . . . . Robots Hacked . | . . . . . . . . . . . . . . . . . . . . . . . . . Non-combat . | . . . . . . . . . . . . . . . . . . . . . . . . . Combat . | . . . . . . . . . . . . . . . . . . . . . . . . . Robot Hacks Applied . | . . . . . . . . . . . . . . . . . . . . . . . . . Relay Couplers Released 6 | . . . . . . 2 . . . . . . . . . . . . . . . . 4 . Machine Destruction 3 | . . . . . . 2 . . . . . . . . . . . . . . . . 1 . Programmers 3 | . . . . . . . . . . . . . . . . . . . . . . . 3 . Robots Rewired 13 | . . . . . . . . . . . . 13 . . . . . . . . . . . . Allies Hacked . | . . . . . . . . . . . . . . . . . . . . . . . . . Hacks Repelled . | . . . . . . . . . . . . . . . . . . . . . . . . . Allies | -11 -10 -10 -10 -9 -8 -7 -7 -7 -7 -6 -6 -6 -6 -5 -5 -5 -5 -4 -4 -4 -4 -3 -2 -2 -------- Run | Scr Mat Min Exi Min Mat Fac Low Low Dat Pro Fac Ext Cet Fac Upp Upp Zhi Pro Fac Was Fac Res Res Tes Total Allies 27 | . . . . . . 1 . . . 1 . 19 5 . . . . . . 1 . . . . Largest Group 8 | . . . . . . 1 . . . 1 . 8 6 5 3 2 2 2 1 1 1 . . . Highest-Rated Group 605 | . . . . . . 16 . . . 95 . 289 605 462 285 190 190 190 95 95 95 . . . Highest-Rated Ally 156 | . . . . . . 16 . . . 95 . 156 156 95 95 95 95 95 95 95 95 . . . Total Orders 4 | . . 3 . . . . . . . 1 . . . . . . . . . . . . . . EXPLORE 3 | . . 2 . . . . . . . 1 . . . . . . . . . . . . . . RETURN 1 | . . 1 . . . . . . . . . . . . . . . . . . . . . . Ally Attacks 334 | . . 11 . . . . . . . 5 . 129 69 8 19 15 . 13 3 16 46 . . . Total Damage 8425 | . . . . . . . . . . 93 . 2032 1720 267 779 461 . 453 92 639 1889 . . . Kills 58 | . . . . . . . . . . 2 . 17 11 2 7 4 . 4 2 1 8 . . . Allies Corrupted . | . . . . . . . . . . . . . . . . . . . . . . . . . Allies Melted . | . . . . . . . . . . . . . . . . . . . . . . . . . Intel | -11 -10 -10 -10 -9 -8 -7 -7 -7 -7 -6 -6 -6 -6 -5 -5 -5 -5 -4 -4 -4 -4 -3 -2 -2 ------- Run | Scr Mat Min Exi Min Mat Fac Low Low Dat Pro Fac Ext Cet Fac Upp Upp Zhi Pro Fac Was Fac Res Res Tes Robot Analysis Total 6 | . 1 . . . . . . . . . . 1 . . . . 4 . . . . . . . Derelict Logs Recovered 3 | . . 1 . . . . . . . . . . . . 1 . . 1 . . . . . . Drone Launches 23 | . . 16 . . . . . . . 2 . 5 . . . . . . . . . . . . Drone Recoveries 5 | . . 5 . . . . . . . . . . . . . . . . . . . . . . Exploration | -11 -10 -10 -10 -9 -8 -7 -7 -7 -7 -6 -6 -6 -6 -5 -5 -5 -5 -4 -4 -4 -4 -3 -2 -2 ------------- Run | Scr Mat Min Exi Min Mat Fac Low Low Dat Pro Fac Ext Cet Fac Upp Upp Zhi Pro Fac Was Fac Res Res Tes Turns Passed 24547 | . 271 659 419 58 584 5775 1055 779 147 1188 781 2289 374 456 3681 505 518 527 231 180 450 789 2177 654 Spaces Moved 8886 | 1 180 340 161 23 187 2058 386 276 82 398 262 784 152 251 528 301 148 306 77 84 143 408 930 420 Core 382 | . . . . . . . . . . . . . . . 125 . . . . . . . . 257 Treads 8310 | . . 327 161 23 187 2058 386 276 82 398 262 784 152 251 403 301 148 306 77 84 143 408 930 163 Legs 194 | 1 180 13 . . . . . . . . . . . . . . . . . . . . . . Wheels . | . . . . . . . . . . . . . . . . . . . . . . . . . Hover . | . . . . . . . . . . . . . . . . . . . . . . . . . Flight . | . . . . . . . . . . . . . . . . . . . . . . . . . Fastest Speed 50 | 120 120 120 260 260 160 160 270 270 170 170 164 160 160 160 160 160 160 160 160 160 160 160 158 50 Average Speed 237 | 120 120 165 260 260 179 258 270 270 178 269 269 246 161 160 690 160 160 160 160 160 160 163 160 93 Slowest Speed 2400 | 120 120 260 260 260 260 270 270 270 270 270 270 365 260 160 2400 160 160 160 160 160 160 166 165 170 Overloaded Moves . | . . . . . . . . . . . . . . . . . . . . . . . . . Propulsion Burnouts . | . . . . . . . . . . . . . . . . . . . . . . . . . Robots Hopped . | . . . . . . . . . . . . . . . . . . . . . . . . . Cave-ins Triggered . | . . . . . . . . . . . . . . . . . . . . . . . . . Teleports 1 | . . . . . . . . . . . . . . . . . . . . . . . . 1 Exploration Rate (%) 46 | 2 46 98 54 13 27 49 62 54 70 76 11 85 65 9 61 64 61 62 4 78 10 19 30 55 Regions Visited 24 Branch Regions 14 Pre-discovered Areas 5 | . . . 1 . . . . . 1 . . . . . . . 3 . . . . . . . Known Exits Taken 4 | . 1 . . . . 1 . . . 1 . . . 1 . . . . . . . . . . Unknown Exits Taken 18 | 1 . 1 1 1 1 . 1 1 1 . 1 1 1 . 1 1 1 1 . . 1 1 1 . Scrap Searched 11 | . . 1 . . . . 1 2 . 1 . . . . 2 2 . 2 . . . . . . Spaces Dug 2 | . . . . . . . . . . . . . . . . . . . . . . 1 . 1 Terrain Destroyed 695 | . . . . . 13 19 . . . . . . 4 2 7 6 . 12 11 270 124 3 200 24 Melee . | . . . . . . . . . . . . . . . . . . . . . . . . . Projectile 97 | . . . . . . 1 . . . . . . 4 2 7 6 . 12 11 . 34 3 15 2 AOE 598 | . . . . . 13 18 . . . . . . . . . . . . . 270 90 . 185 22 Terrain Rammed . | . . . . . . . . . . . . . . . . . . . . . . . . . Walls Destroyed . | . . . . . . . . . . . . . . . . . . . . . . . . . Machines Disabled . | . . . . . . . . . . . . . . . . . . . . . . . . . Actions | -11 -10 -10 -10 -9 -8 -7 -7 -7 -7 -6 -6 -6 -6 -5 -5 -5 -5 -4 -4 -4 -4 -3 -2 -2 --------- Run | Scr Mat Min Exi Min Mat Fac Low Low Dat Pro Fac Ext Cet Fac Upp Upp Zhi Pro Fac Was Fac Res Res Tes Total 11298 | . 203 437 163 22 313 2340 391 286 84 481 307 1027 250 297 549 307 428 316 155 97 238 473 1537 597 Wait 1003 | . 2 67 . . 36 84 1 . . 60 . 34 61 12 11 . 269 . 57 1 33 7 190 78 Move 8863 | . 179 339 160 22 186 2057 385 275 81 397 261 783 151 250 527 300 147 305 77 83 142 407 929 420 Hop . | . . . . . . . . . . . . . . . . . . . . . . . . . Pick Up 100 | . 3 9 3 . 8 30 . . . 1 1 7 4 6 . . 2 . 2 1 2 5 10 6 Fast Attach 92 | . 1 5 . . 6 9 1 . 1 2 7 8 8 6 . . 4 . 1 . 2 7 18 6 Attach 62 | . . 4 . . 3 4 . . . 4 2 14 1 3 . . . . 3 . 3 3 9 9 Detach 17 | . . 1 . . 1 2 . . 1 . 2 1 4 . . . . . . . . 1 . 4 Swap 76 | . . 1 . . 6 19 . . . . 12 7 2 2 6 . 2 . . 3 5 3 7 1 Drop 123 | . 2 8 . . 4 41 . . 1 2 9 8 5 11 . . 4 . 2 1 2 5 16 2 Fire 801 | . 16 2 . . 60 84 4 11 . 15 12 53 14 4 5 7 . 11 13 8 48 34 345 55 Melee . | . . . . . . . . . . . . . . . . . . . . . . . . . Ram 4 | . . . . . . . . . . . . 1 . . . . . . . . . . 1 2 Kick . | . . . . . . . . . . . . . . . . . . . . . . . . . Crush 30 | . . 1 . . 3 8 . . . . 1 . . 3 . . . . . . 1 1 11 1 Escape Stasis 21 | . . . . . . 2 . . . . . 6 . . . . . . . . . . . 13 Rewire 106 | . . . . . . . . . . . . 105 . . . . . . . . . . 1 . Trap . | . . . . . . . . . . . . . . . . . . . . . . . . . Miscellaneous . | . . . . . . . . . . . . . . . . . . . . . . . . . Route ------- -11/Scrapyard -10/Materials (discovered 3 exits: [*Mat] / *Min x2) -10/Mines (discovered 3 exits: [*Mat x2] / *Exi) -10/Exiles -9/Mines -8/Materials (discovered 2 exits: *Fac / Sto) -7/Factory (discovered 4 exits: *Fac x2 / *Low x2) -7/Lower Caves -7/Lower Caves -7/Data Miner -6/Proximity Caves -6/Factory -6/Extension (discovered 3 exits: *Fac x2 / *Cet) -6/Cetus (discovered 2 exits: *Fac / [*Arc]) -5/Factory (discovered 2 exits: *Upp x2) -5/Upper Caves -5/Upper Caves -5/Zhirov -4/Proximity Caves -4/Factory -4/Waste -4/Factory -3/Research -2/Research -2/Testing (discovered 1 exit: Acc) History --------- Turn | Location | Event 1 | -11/Scrapyard | Discovered new exit (range 0) 1 | -11/Scrapyard | Entered Materials 54 | -10/Materials | Identified exit to Mines 129 | -10/Materials | Discovered new exit (range 16) 272 | -10/Materials | Entered Mines 275 | -10/Mines | Found the Drone Emporium 281 | -10/Mines | Found Prototype Device 281 | -10/Mines | Identified Bomb Drone Bay 323 | -10/Mines | Build established: Mutant 441 | -10/Mines | Assembled infested the area 578 | -10/Mines | Discovered new exit (range 63) 584 | -10/Mines | Discovered new exit (range 51) 861 | -10/Mines | Learned Materials emergency access door positions 920 | -10/Mines | Deemed a non-threat by the Exiles lab entrance 920 | -10/Mines | Discovered new exit (range 5) 931 | -10/Mines | Entered Exiles 1005 | -10/Exiles | Met 8R-AWN 1049 | -10/Exiles | Met EX-HEX 1189 | -10/Exiles | Met EX-DEC 1236 | -10/Exiles | Learned location of Zion (-6) 1330 | -10/Exiles | Discovered new exit (range 10) 1350 | -10/Exiles | Entered Mines 1371 | -9/Mines | Discovered new exit (range 12) 1408 | -9/Mines | Entered Materials 1408 | -8/Materials | Evolved 4 slots: Propulsion x2, Utility x2 1781 | -8/Materials | Repaired Lgt. Treads 1889 | -8/Materials | Identified exit to Storage 1955 | -8/Materials | Discovered new exit (range 16) 1989 | -8/Materials | System corruption reached 10% 1992 | -8/Materials | Entered Factory 1992 | -7/Factory | Evolved 2 slots: Propulsion x1, Weapon x1 2287 | -7/Factory | Build established: Scavenger-Tank 2345 | -7/Factory | Fabricated Huge Storage Unit (x1) 2750 | -7/Factory | System corruption reached 10% 3584 | -7/Factory | Fabricated M-14 Sweeper? 3682 | -7/Factory | Build established: Tank 3791 | -7/Factory | Local fabrication network quarantined 5029 | -7/Factory | Discovered new exit (range 8) 5049 | -7/Factory | Identified exit to Factory 6783 | -7/Factory | Build established: Scavenger-Tank 6858 | -7/Factory | Discovered exit to Factory (range 5) 7119 | -7/Factory | Garrison activated, responded to threat 7263 | -7/Factory | Identified exit to Lower Caves 7767 | -7/Factory | Entered Lower Caves 8155 | -7/Lower Caves | Encountered a Warlord checkpoint 8814 | -7/Lower Caves | Discovered new exit (range 3) 8822 | -7/Lower Caves | Entered another Lower Caves area 8894 | -7/Lower Caves | Attracted the attention of an 0b10 checkpoint 8955 | -7/Lower Caves | Spotted B-75 Beast 9233 | -7/Lower Caves | Destroyed B-75 Beast 9563 | -7/Lower Caves | Discovered new exit (range 14) 9601 | -7/Lower Caves | Entered Data Miner 9601 | -7/Data Miner | Discovered new exit (range 6) 9644 | -7/Data Miner | Met Data Miner 9676 | -7/Data Miner | Learned location of Section 7 (-3) 9676 | -7/Data Miner | Acquired the access code to Warlord's prototype stash 9700 | -7/Data Miner | Received God Mode back door access code from Data Miner 9748 | -7/Data Miner | Entered Proximity Caves 9751 | -6/Proximity Caves | Attacked by a faux Warlord 9869 | -6/Proximity Caves | Escorted by Enhanced Grunt 10078 | -6/Proximity Caves | Build established: Tank 10915 | -6/Proximity Caves | Discovered exit to Factory (range 7) 10936 | -6/Proximity Caves | Entered Factory 10936 | -6/Factory | Evolved 2 slots: Power x1, Utility x1 10967 | -6/Factory | Garrison activated, responded to threat 11591 | -6/Factory | Found Prototype Launcher 11591 | -6/Factory | Identified Scatter Rocket Array 11682 | -6/Factory | Discovered new exit (range 14) 11717 | -6/Factory | Entered Extension 11815 | -6/Extension | Rescued a captive Derelict 11816 | -6/Extension | Rescued a captive Derelict 12400 | -6/Extension | Spotted B-75 Beast 13110 | -6/Extension | Destroyed B-75 Beast 13112 | -6/Extension | Spotted B-75 Beast 13134 | -6/Extension | System corruption reached 10% 13168 | -6/Extension | Core integrity fell below 50% 13204 | -6/Extension | Destroyed B-75 Beast 13220 | -6/Extension | Lost 13 parts (2p6n2u3w) 13251 | -6/Extension | Discovered new exit (range 3) 13384 | -6/Extension | Discovered new exit (range 22) 13387 | -6/Extension | Discovered new exit (range 20) 13483 | -6/Extension | Rescued a captive Derelict 13706 | -6/Extension | Rescued a captive Derelict 13707 | -6/Extension | Rescued a captive Derelict 13756 | -6/Extension | Rescued A7 14006 | -6/Extension | Entered Cetus 14006 | -6/Cetus | Accompanied by 5 allies (A7) 14011 | -6/Cetus | Acquired a Cetus Manufacturing Module code from A7 14027 | -6/Cetus | Spotted Cetus Guard 14027 | -6/Cetus | Spotted Cetus Guard 14034 | -6/Cetus | Spotted Cetus Guard 14034 | -6/Cetus | Spotted Cetus Guard 14037 | -6/Cetus | Allies destroyed Cetus Guard 14046 | -6/Cetus | Allies destroyed Cetus Guard 14048 | -6/Cetus | Allies destroyed Cetus Guard 14051 | -6/Cetus | Destroyed Cetus Guard 14085 | -6/Cetus | System corruption reached 30% 14180 | -6/Cetus | Started Cetus Manufacturing Module 14190 | -6/Cetus | Discovered new exit (range 21) 14205 | -6/Cetus | Manufactured an Enhanced Grunt 14227 | -6/Cetus | Spotted Cetus Guard 14228 | -6/Cetus | Spotted Cetus Guard 14228 | -6/Cetus | Spotted Cetus Guard 14230 | -6/Cetus | Manufactured an Enhanced Grunt 14235 | -6/Cetus | Discovered new exit (range 22) 14238 | -6/Cetus | Allies destroyed Cetus Guard 14238 | -6/Cetus | Spotted Cetus Guard 14252 | -6/Cetus | Allies destroyed Cetus Guard 14255 | -6/Cetus | Manufactured an Enhanced Grunt 14255 | -6/Cetus | Destroyed Cetus Guard 14265 | -6/Cetus | Destroyed Cetus Guard 14280 | -6/Cetus | Manufactured an Enhanced Grunt 14280 | -6/Cetus | Met Revision 17 14305 | -6/Cetus | Manufactured an Enhanced Grunt 14369 | -6/Cetus | Build established: Scavenger-Tank 14380 | -6/Cetus | Entered Factory 14380 | -5/Factory | Accompanied by 6 allies (A7) 14380 | -5/Factory | Evolved 2 slots: Propulsion x1, Weapon x1 14543 | -5/Factory | Identified exit to Upper Caves 14713 | -5/Factory | Found Prototype Device 14714 | -5/Factory | Identified Exp. Thermal Shield 14825 | -5/Factory | System corruption reached 10% 14836 | -5/Factory | Entered Upper Caves 14836 | -5/Upper Caves | Accompanied by 3 allies 14848 | -5/Upper Caves | Learned Factory garrison access intel 14929 | -5/Upper Caves | Encountered a Warlord checkpoint 18507 | -5/Upper Caves | Discovered new exit (range 5) 18517 | -5/Upper Caves | Entered another Upper Caves area 18517 | -5/Upper Caves | Accompanied by 2 allies 18558 | -5/Upper Caves | Encountered a Warlord checkpoint 18738 | -5/Upper Caves | Spotted B-75 Beast 18744 | -5/Upper Caves | Allies destroyed B-75 Beast 18971 | -5/Upper Caves | Discovered new exit (range 12) 19022 | -5/Upper Caves | Entered Zhirov 19022 | -5/Zhirov | Accompanied by 2 allies 19294 | -5/Zhirov | Discovered new exit (range 3) 19323 | -5/Zhirov | Met Zhirov 19360 | -5/Zhirov | Learned location of Quarantine (-3) 19360 | -5/Zhirov | Learned location of Testing (-2) 19360 | -5/Zhirov | Learned location of Command (-1) 19371 | -5/Zhirov | Zhirov requested help retrieving the SGEMP Prototype 19398 | -5/Zhirov | Found Alien Artifact 19418 | -5/Zhirov | Found Alien Artifact 19418 | -5/Zhirov | Identified Integrated Reactor 19418 | -5/Zhirov | Installed Integrated Reactor, increased core energy generation (+10) 19540 | -5/Zhirov | Entered Proximity Caves 19540 | -4/Proximity Caves | Accompanied by 2 allies 19555 | -4/Proximity Caves | Learned Research stockpile data 20057 | -4/Proximity Caves | Discovered new exit (range 3) 20067 | -4/Proximity Caves | Entered Factory 20067 | -4/Factory | Accompanied by 1 ally 20067 | -4/Factory | Evolved 2 slots: Utility x2 20068 | -4/Factory | Loaded intel: 4 garrison access locations 20137 | -4/Factory | Spotted B-86 Titan 20190 | -4/Factory | Allies destroyed B-86 Titan 20298 | -4/Factory | Sucked down chute 20298 | -4/Factory | Entered Waste 20298 | -4/Waste | Met up with 1 ally sucked down the chute earlier 20313 | -4/Waste | EMP discharged 20317 | -4/Waste | Spotted C-40 Crusher 20317 | -4/Waste | Spotted C-40 Crusher 20322 | -4/Waste | Allies destroyed C-40 Crusher 20323 | -4/Waste | Destroyed C-40 Crusher 20323 | -4/Waste | Spotted C-40 Crusher 20330 | -4/Waste | Destroyed C-40 Crusher 20341 | -4/Waste | Spotted C-40 Crusher 20349 | -4/Waste | Destroyed C-40 Crusher 20361 | -4/Waste | Spotted C-40 Crusher 20369 | -4/Waste | Destroyed C-40 Crusher 20374 | -4/Waste | Spotted C-40 Crusher 20388 | -4/Waste | Destroyed C-40 Crusher 20413 | -4/Waste | EMP discharged 20413 | -4/Waste | System corruption reached 10% 20462 | -4/Waste | Discovered new exit (range 11) 20478 | -4/Waste | Entered Factory 20478 | -4/Factory | Accompanied by 1 ally 20479 | -4/Factory | Spotted B-86 Titan 20508 | -4/Factory | Destroyed B-86 Titan 20560 | -4/Factory | Lost 3 parts (1u2w) 20728 | -4/Factory | First assault squad dispatched 20755 | -4/Factory | Incoming assault squad redirected 20882 | -4/Factory | Destroyed 7 combat bots 20906 | -4/Factory | Discovered new exit (range 9) 20928 | -4/Factory | Entered Research 20928 | -3/Research | Evolved 2 slots: Utility x2 21128 | -3/Research | Revision forces began assault on 0b10 21140 | -3/Research | Met up with Revision 17++ 21332 | -3/Research | Spotted B-86 Titan 21471 | -3/Research | Found Quantum Capacitor 21628 | -3/Research | Research terminal network offline 21702 | -3/Research | Discovered new exit (range 9) 21717 | -3/Research | Entered another Research area 21717 | -2/Research | Evolved 2 slots: Propulsion x2 21776 | -2/Research | Build established: Scavenger-Mutant 21832 | -2/Research | Repaired Centrium Heavy Treads 22033 | -2/Research | Spotted B-90 Cyclops 22268 | -2/Research | Garrison activated, responded to threat 22628 | -2/Research | System corruption reached 10% 22873 | -2/Research | Incoming investigation squad redirected 22967 | -2/Research | First assault squad dispatched 23027 | -2/Research | Repaired Centrium Medium Armor Plating 23090 | -2/Research | Incoming assault squad redirected 23441 | -2/Research | Found Prototype Slashing Weapon 23791 | -2/Research | High security lockdown imminent 23827 | -2/Research | Destroyed 10 combat bots 23871 | -2/Research | High security lockdown engaged 23879 | -2/Research | Discovered new exit (range 8) 23894 | -2/Research | Entered Testing 23914 | -2/Testing | Identified exit to Access 23924 | -2/Testing | Lost 4 parts (3u1w) 24144 | -2/Testing | First assault squad dispatched 24189 | -2/Testing | Scanned by Researcher 24235 | -2/Testing | Lost 8 parts (1p2n2u3w) 24241 | -2/Testing | Found Prototype Launcher 24241 | -2/Testing | Identified Com. Tesla Bomb Launcher 24244 | -2/Testing | Found Com. Tesla Bomb Launcher 24247 | -2/Testing | Found Com. Tesla Bomb Launcher 24250 | -2/Testing | Found Com. Tesla Bomb Launcher 24253 | -2/Testing | Destroyed 10 combat bots 24253 | -2/Testing | Found Com. Tesla Bomb Launcher 24404 | -2/Testing | Released all parts (2) 24405 | -2/Testing | Core integrity fell below 50% 24405 | -2/Testing | Identified Transdimensional Reconstructor 24405 | -2/Testing | Warped through subspace 24435 | -2/Testing | Lost 9 parts (4n1u4w) 24453 | -2/Testing | Core integrity fell below 20% 24548 | -2/Testing | Destroyed by H-88 Terminator with Heavy Machine Gun Last Messages --------------- T012. 24439_ System corrupted: Energy discharge (-20). 24467_ Acquired Biometal Heavy Treads. 24474_ PP# 24485_ L-61 Swordsman unfolds itself. 24485_ E-15 Imp unfolds itself. 24487_ E-15 Imp destroyed. 24489_ System corrupted: Matter fused (-6). 24512_ >2VUIKRBE1Q6SEBHF873XW IS>T %<#W0I 24526_ K-01 Serf cleans the Terminal. 24528_ C-65 Expert calibrates the Field Warper. 24529_ K-01 Serf cleans the Terminal. 24544_ Penetrated by Slug. 24546_ Q782-y follow-up attacks with Prototype Impact Weapon. 24548_ Penetrated by Slug. Map ----- +----------------------------------------------------+ | ?????????########## + #??????????????????? | | ?????????# == # # #??????????????????? | | ?????????# =! # # #??????????????????? | | ?????????# # / #??????????????????? | | ?????????# # # #??????????????????? | | ?????????# ] # # #??????????????????? | | ?????????# """ # # #??????????????????? | | ?????????# """ + ##########??????????????????? | | ?????????# """ ! # ###############?????????????? | | ?????????# # #?#####???????? | | ?????????#####/#### #?""""#???????? | | ?????????????# #??############### ##"F "####????? | | ????########## #######T#####????# # #????? | | ????# #????# #/ """#????? | | ????# #????# # """#????? | | ????# ###### # """#????? | | ????+ # #????? | | ????# + """#????? | | ????##+####### ##################### """#????? | | ?????????????# #???????????????????# """#????? | | ?????????????# #???????????????????# #????# | | ?????????????#g##############################????# | | ?????????????#c h #??????# | | ?????????????+ h gh #??????# | | ?????????????# R gg Q #??????# | | ?????????????+ l @ #??????# | | ?????????????# """ """ ###+####### #??????# | | ?????????????# """ """ # ????# #??????# | | ?????????????# """ """ # ??+ #??????# | | ?????????????# ck # ######+#####??# | | ?????????????# """ # ## !#??# | | ?????????????# """ k ""# ## #??# | | ?????????????# """ ""# ## """ """ #??# | | ?????????????# ""# ## """G""" #??# | | ????########## """ T# ############??# | | ????# # """ ""###########??????######## | | ????#" """ # """ ""#????????????????+ | | ????#" """ !# ""#???????????"????# | | ????#" """ # ########### ""???# | | ????#T """ + # # """??+ | | ????#" """ # ### # | #?"""??# | | ????#" """ # #?# # ! #?? ?# " | | ????#" """ # #?# # #???! ?# "R | | ????# ######?# + """ """ #???? # "" | | ????#####+########### # """ """ #????? # | | ????????# ## # # """ """ #????? + | | ????????# ## # # #????" # ### | | ????????# ## # ###########??? ?# ### | | ????????# ## # #????????????##?## ## | | ????????# ## # ########????????# # | +----------------------------------------------------+ Best States ------------- Heat Dissipation 106 Coolant Potential 65 Energy Generation 61 Energy Capacity 600 Matter Stores 300 Matter Capacity 300 Sight Range 23 Terrain Scan Density 10 Power Amplification 30 Armor Coverage 1800 Resistance: KI 20 Resistance: TH 50 Resistance: EX 20 Resistance: EM 20 Resistance: I 20 Resistance: S 20 Resistance: P 20 Evasion (%) 55 Recoil Reduction 8 Overload Amplification 75 Offensive Hacking 10 Item Schematics ----------------- Huge Storage Unit | -10/Materials | Hacked Combat Drone Bay | -7/Data Miner | Free Lgt. Regenerative Plating | -7/Data Miner | Free Exp. Flexi-carbon Leg | -7/Data Miner | Free Triangulator | -7/Data Miner | Free Exp. Sensor Array | -7/Data Miner | Free Exp. Terrain Scanner | -7/Data Miner | Free Tactical Coordination Suite | -7/Data Miner | Free Cloaking Device | -7/Data Miner | Free Plasma Sword | -7/Data Miner | Free Assault Drone Bay | -5/Zhirov | Free Exp. Heat Sink | -5/Zhirov | Free Imp. Arc Thrower | -5/Zhirov | Free Exp. Optical Array | -5/Zhirov | Free Robot Schematics ------------------ S-27 Virus | -7/Data Miner | Free G-50 Soldier | -7/Data Miner | Free H-66 Slayer | -7/Data Miner | Free I-36 Angel | -7/Data Miner | Free Fabricated ------------ Huge Storage Unit | x1 | -7/Factory M-14 Sweeper | x1 | -7/Factory | Preloaded Alien Tech Used ----------------- Integrated Reactor Transdimensional Reconstructor Achievements -------------- Revolutionary Research Challenges ------------ None Game ------ Seed DamperAntimatterGreatsword Manual? 0 Play Time 02:18:06 Cumulative 332.8 hours Start 2021.04.04 @ 05:38:46 End 2021.04.04 @ 08:27:24 Sessions 1 Manual Loads 0 Difficulty Adventurer Special Mode None Game No. 326 Rogue 146 Adventurer 102 Explorer 78 Win Type - Total 23 Types 16/0/5/2/0/0/0/0/0 Lore% 81 Gallery% 88 Achievement% 70 Wizard Run 0 Options --------- ASCII 0 Keyboard 0 Movement Numpad Keybinds 0 Fullscreen 2 Font 18/TerminusBold Map View 76x50 Tactical HUD 1 Map Filters NONE Filters NONE Steam 1 RUN: 9f60c842-163b-4de3-8cf4-87fdbd4ec4de